fUST/lending_fUST_20250531
["ID","MTS","AMOUNT","RATE_DAILY","PERIOD"]
[363240896,1748641832369,-500.0,0.00015144,2]
[363240897,1748641832378,-500.0,0.00015144,2]
[363240898,1748641832388,-500.0,0.00015144,2]
[363240899,1748641832398,-345.54959581,0.00015144,2]
[363240900,1748641832407,-500.0,0.00015144,2]
[363240901,1748641832417,-500.0,0.00015144,2]
[363240902,1748641832426,-500.0,0.00015144,2]
[363240903,1748641832435,-500.0,0.00015144,2]
[363240904,1748641832445,-500.0,0.00015144,2]
[363240905,1748641832453,-500.0,0.00015144,2]
[363240906,1748641832463,-300.0,0.00015144,2]
[363240907,1748641832472,-999.92556039,0.00015152,2]
[363240908,1748641832481,-465.7100783,0.00015418,2]
[363240909,1748641832491,-427.43070778,0.00015772,2]
[363240910,1748641832500,-420.0,0.0001589,2]
[363240911,1748641832509,-1680.0,0.00015963,2]
[363240912,1748641832519,-396.87786114,0.00016281,2]
[363240913,1748641832528,-1000.0,0.00016436,2]
[363240914,1748641832537,-1000.0,0.00016436,2]
[363240915,1748641832547,-154.83239167,0.00016437,2]
[363240916,1748641832557,-155.0,0.00016437,2]
[363240917,1748641832567,-1000.0,0.00016437,2]
[363240918,1748641832575,-1000.0,0.00016437,2]
[363240919,1748641832585,-444.60484619,0.00016437,2]
[363240920,1748641832598,-555.39515381,0.00016437,2]
[363240921,1748641832607,-1000.0,0.00016437,2]
[363240922,1748641832618,-430.0,0.00016438,2]
[363240923,1748641832628,-300.0,0.00016438,2]
[363240924,1748641832637,-430.0,0.00016438,2]
[363240925,1748641832647,-430.0,0.00016438,2]
[363240926,1748641832656,-430.0,0.00016438,2]
[363240927,1748641832666,-430.0,0.00016438,2]
[363240928,1748641832675,-430.0,0.00016438,2]
[363240929,1748641832685,-457.7643394,0.00016438,2]
[363240930,1748641832695,-430.0,0.00016438,2]
[363240931,1748641832705,-430.0,0.00016438,2]
[363240932,1748641832714,-430.0,0.00016438,2]
[363240933,1748641832724,-430.0,0.00016438,2]
[363240934,1748641832733,-430.0,0.00016438,2]
[363240935,1748641832749,-430.0,0.00016438,2]
[363240936,1748641832759,-430.0,0.00016438,2]
[363240937,1748641832768,-430.0,0.00016438,2]
[363240938,1748641832779,-430.0,0.00016438,2]
[363240939,1748641832789,-505.26192882,0.00016438,2]
[363240940,1748641832798,-430.0,0.00016438,2]
[363240941,1748641832808,-400.55172451,0.00016438,2]
[363240942,1748641832818,-430.0,0.00016438,2]
[363240943,1748641832827,-430.0,0.00016438,2]
[363240944,1748641832837,-213.15,0.00016438,2]
[363240945,1748641832846,-430.0,0.00016438,2]
[363240946,1748641832856,-430.0,0.00016438,2]
[363240947,1748641832865,-165.48957521,0.00016438,2]
[363240948,1748641832875,-430.0,0.00016438,2]
[363240949,1748641832884,-169.25895627,0.00016438,2]
[363240950,1748641832893,-1254.13,0.00016438,2]
[363240951,1748641832904,-430.0,0.00016438,2]
[363240952,1748641832914,-430.0,0.00016438,2]
[363240953,1748641832923,-430.0,0.00016438,2]
[363240954,1748641832933,-481.24,0.00016438,2]
[363240955,1748641832942,-300.44878954,0.00016438,2]
[363240956,1748641832967,-129.55121046,0.00016438,2]
[363240957,1748641832976,-430.0,0.00016438,2]
[363240958,1748641832986,-430.0,0.00016438,2]
[363240959,1748641832995,-423.49058654,0.00016438,2]
[363240960,1748641833005,-430.0,0.00016438,2]
[363240961,1748641833014,-127.73171324,0.00016438,2]
[363240987,1748641838199,-302.26828676,0.00016438,2]
[363240988,1748641838208,-430.0,0.00016438,2]
[363240989,1748641838217,-430.0,0.00016438,2]
[363240991,1748641838227,-1234.6,0.00016438,2]
[363240993,1748641838237,-430.0,0.00016438,2]
[363240995,1748641838246,-430.0,0.00016438,2]
[363240997,1748641838255,-430.0,0.00016438,2]
[363240999,1748641838265,-430.0,0.00016438,2]
[363241001,1748641838274,-430.0,0.00016438,2]
[363241003,1748641838283,-514.57626875,0.00016438,2]
[363241005,1748641838293,-430.0,0.00016438,2]
[363241007,1748641838302,-430.0,0.00016438,2]
[363241009,1748641838311,-430.0,0.00016438,2]
[363241011,1748641838322,-1806.84,0.00016438,2]
[363241013,1748641838331,-430.0,0.00016438,2]
[363241015,1748641838340,-430.0,0.00016438,2]
[363241017,1748641838349,-309.17,0.00016438,2]
[363241019,1748641838359,-430.0,0.00016438,2]
[363241021,1748641838368,-430.0,0.00016438,2]
[363241023,1748641838377,-430.0,0.00016438,2]
[363241025,1748641838387,-430.0,0.00016438,2]
[363241027,1748641838396,-430.0,0.00016438,2]
[363241029,1748641838406,-430.0,0.00016438,2]
[363241031,1748641838415,-430.0,0.00016438,2]
[363241033,1748641838424,-430.0,0.00016438,2]
[363241035,1748641838433,-2218.07,0.00016438,2]
[363241037,1748641838442,-430.0,0.00016438,2]
[363241039,1748641838453,-430.0,0.00016438,2]
[363241040,1748641838462,-430.0,0.00016438,2]
[363241042,1748641838471,-430.0,0.00016438,2]
[363241044,1748641838481,-430.0,0.00016438,2]
[363241047,1748641838491,-362.68772449,0.00016438,2]
[363241049,1748641838502,-430.0,0.00016438,2]
[363241050,1748641838512,-2428.29,0.00016438,2]
[363241053,1748641838521,-430.0,0.00016438,2]
[363241055,1748641838531,-635.15,0.00016438,2]
[363241057,1748641838541,-430.0,0.00016438,2]
[363241059,1748641838550,-430.0,0.00016438,2]
[363241060,1748641838559,-382.32954148,0.00016438,2]
[363241063,1748641838569,-507.57,0.00016438,2]
[363241065,1748641838580,-3119.5,0.00016438,2]
[363241066,1748641838589,-430.0,0.00016438,2]
[363241068,1748641838598,-430.0,0.00016438,2]
[363241071,1748641838608,-522.02060256,0.00016438,2]
[363241072,1748641838617,-430.0,0.00016438,2]
[363241074,1748641838627,-430.0,0.00016438,2]
[363241076,1748641838637,-517.55,0.00016438,2]
[363241078,1748641838646,-430.0,0.00016438,2]
[363241081,1748641838656,-430.0,0.00016438,2]
[363241082,1748641838665,-430.0,0.00016438,2]
[363241085,1748641838675,-430.0,0.00016438,2]
[363241087,1748641838685,-609.36,0.00016438,2]
[363241088,1748641838696,-430.0,0.00016438,2]
[363241091,1748641838707,-430.0,0.00016438,2]
[363241093,1748641838716,-430.0,0.00016438,2]
[363241095,1748641838725,-430.0,0.00016438,2]
[363241097,1748641838735,-430.0,0.00016438,2]
[363241099,1748641838748,-430.0,0.00016438,2]
[363241101,1748641838758,-430.0,0.00016438,2]
[363241103,1748641838767,-430.0,0.00016438,2]
[363241105,1748641838776,-660.71,0.00016438,2]
[363241107,1748641838787,-430.0,0.00016438,2]
[363241109,1748641838796,-430.0,0.00016438,2]
[363241111,1748641838805,-430.0,0.00016438,2]
[363241113,1748641838814,-663.44,0.00016438,2]
[363241115,1748641838825,-430.0,0.00016438,2]
[363241117,1748641838834,-2525.76,0.00016438,2]
[363241119,1748641838843,-475.44,0.00016438,2]
[363241121,1748641838852,-382.86160078,0.00016438,2]
[363241123,1748641838861,-539.73182733,0.00016438,2]
[363241125,1748641838871,-430.0,0.00016438,2]
[363241127,1748641838881,-430.0,0.00016438,2]
[363241129,1748641838890,-430.0,0.00016438,2]
[363241131,1748641838899,-430.0,0.00016438,2]
[363241133,1748641838908,-430.0,0.00016438,2]
[363241135,1748641838918,-494.42079598,0.00016438,2]
[363241137,1748641838926,-430.0,0.00016438,2]
[363241139,1748641838936,-430.0,0.00016438,2]
[363241141,1748641838945,-430.0,0.00016438,2]
[363241143,1748641838955,-2730.93,0.00016438,2]
[363241145,1748641838963,-430.0,0.00016438,2]
[363241147,1748641838972,-430.0,0.00016438,2]
[363241149,1748641838982,-695.56,0.00016438,2]
[363241151,1748641838990,-430.0,0.00016438,2]
[363241153,1748641839000,-430.0,0.00016438,2]
[363241155,1748641839011,-430.0,0.00016438,2]
[363241157,1748641839020,-430.0,0.00016438,2]
[363241159,1748641839030,-430.0,0.00016438,2]
[363241161,1748641839039,-430.0,0.00016438,2]
[363241163,1748641839049,-430.0,0.00016438,2]
[363241165,1748641839058,-1254.69,0.00016438,2]
[363241167,1748641839067,-430.0,0.00016438,2]
[363241169,1748641839076,-430.0,0.00016438,2]
[363241171,1748641839087,-430.0,0.00016438,2]
[363241173,1748641839096,-430.0,0.00016438,2]
[363241175,1748641839106,-430.0,0.00016438,2]
[363241177,1748641839115,-430.0,0.00016438,2]
[363241179,1748641839125,-430.0,0.00016438,2]
[363241181,1748641839134,-430.0,0.00016438,2]
[363241183,1748641839143,-643.19,0.00016438,2]
[363241185,1748641839153,-430.0,0.00016438,2]
[363241187,1748641839162,-895.87,0.00016438,2]
[363241189,1748641839171,-430.0,0.00016438,2]
[363241191,1748641839182,-430.0,0.00016438,2]
[363241193,1748641839191,-430.0,0.00016438,2]
[363241195,1748641839200,-430.0,0.00016438,2]
[363241214,1748641839365,-691.5,0.00016438,2]
[363241216,1748641839377,-430.0,0.00016438,2]
[363241218,1748641839386,-430.0,0.00016438,2]
[363241220,1748641839396,-430.0,0.00016438,2]
[363241222,1748641839405,-430.0,0.00016438,2]
[363241224,1748641839415,-430.0,0.00016438,2]
[363241226,1748641839424,-430.0,0.00016438,2]
[363241228,1748641839433,-430.0,0.00016438,2]
[363241230,1748641839442,-430.0,0.00016438,2]
[363241231,1748641839451,-430.0,0.00016438,2]
[363241234,1748641839463,-430.0,0.00016438,2]
[363241236,1748641839473,-430.0,0.00016438,2]
[363241237,1748641839482,-430.0,0.00016438,2]
[363241239,1748641839491,-430.0,0.00016438,2]
[363241242,1748641839501,-430.0,0.00016438,2]
[363241244,1748641839510,-430.0,0.00016438,2]
[363241246,1748641839520,-430.87526326,0.00016438,2]
[363241247,1748641839529,-1550.89,0.00016438,2]
[363241250,1748641839539,-430.0,0.00016438,2]
[363241252,1748641839548,-430.0,0.00016438,2]
[363241254,1748641839557,-430.0,0.00016438,2]
[363241256,1748641839567,-430.0,0.00016438,2]
[363241258,1748641839576,-430.0,0.00016438,2]
[363241260,1748641839585,-352.86219687,0.00016438,2]
[363241263,1748641839595,-430.0,0.00016438,2]
[363241265,1748641839604,-430.0,0.00016438,2]
[363241267,1748641839613,-430.0,0.00016438,2]
[363241268,1748641839624,-430.0,0.00016438,2]
[363241271,1748641839633,-430.0,0.00016438,2]
[363241273,1748641839642,-188.0,0.00016438,2]
[363241276,1748641839651,-430.0,0.00016438,2]
[363241278,1748641839660,-430.0,0.00016438,2]
[363241280,1748641839669,-430.0,0.00016438,2]
[363241282,1748641839678,-430.0,0.00016438,2]
[363241284,1748641839688,-430.0,0.00016438,2]
[363241286,1748641839697,-430.0,0.00016438,2]
[363241289,1748641839709,-430.0,0.00016438,2]
[363241291,1748641839718,-430.0,0.00016438,2]
[363241293,1748641839727,-430.0,0.00016438,2]
[363241295,1748641839737,-430.0,0.00016438,2]
[363241297,1748641839749,-430.0,0.00016438,2]
[363241299,1748641839759,-430.0,0.00016438,2]
[363241301,1748641839768,-430.0,0.00016438,2]
[363241302,1748641839777,-430.0,0.00016438,2]
[363241305,1748641839788,-430.0,0.00016438,2]
[363241307,1748641839797,-430.0,0.00016438,2]
[363241309,1748641839806,-430.0,0.00016438,2]
[363241311,1748641839816,-430.0,0.00016438,2]
[363241313,1748641839826,-430.0,0.00016438,2]
[363241315,1748641839836,-430.0,0.00016438,2]
[363241317,1748641839845,-501.66015232,0.00016438,2]
[363241319,1748641839854,-430.0,0.00016438,2]
[363241321,1748641839864,-430.0,0.00016438,2]
[363241323,1748641839874,-430.0,0.00016438,2]
[363241325,1748641839883,-430.0,0.00016438,2]
[363241327,1748641839892,-430.0,0.00016438,2]
[363241330,1748641839902,-160.19330124,0.00016438,2]
[363241332,1748641839912,-478.24340386,0.00016438,2]
[363241334,1748641839922,-260.83178862,0.00016438,2]
[363241336,1748641839931,-430.0,0.00016438,2]
[363241338,1748641839941,-430.0,0.00016438,2]
[363241340,1748641839950,-430.0,0.00016438,2]
[363241342,1748641839959,-1512.83,0.00016438,2]
[363241344,1748641839968,-430.0,0.00016438,2]
[363241346,1748641839977,-430.0,0.00016438,2]
[363241348,1748641839986,-430.0,0.00016438,2]
[363241350,1748641839996,-430.0,0.00016438,2]
[363241352,1748641840005,-430.0,0.00016438,2]
[363241354,1748641840014,-430.0,0.00016438,2]
[363241356,1748641840023,-430.0,0.00016438,2]
[363241358,1748641840032,-1338.85,0.00016438,2]
[363241360,1748641840042,-430.0,0.00016438,2]
[363241363,1748641840051,-430.0,0.00016438,2]
[363241365,1748641840059,-430.0,0.00016438,2]
[363241368,1748641840069,-430.0,0.00016438,2]
[363241370,1748641840078,-430.0,0.00016438,2]
[363241372,1748641840088,-430.0,0.00016438,2]
[363241374,1748641840098,-884.37,0.00016438,2]
[363241376,1748641840107,-430.0,0.00016438,2]
[363241378,1748641840116,-400.44677364,0.00016438,2]
[363241380,1748641840126,-430.0,0.00016438,2]
[363241382,1748641840135,-430.0,0.00016438,2]
[363241384,1748641840143,-430.0,0.00016438,2]
[363241386,1748641840152,-430.0,0.00016438,2]
[363241388,1748641840162,-430.0,0.00016438,2]
[363241390,1748641840171,-430.0,0.00016438,2]
[363241392,1748641840180,-430.0,0.00016438,2]
[363241394,1748641840189,-430.0,0.00016438,2]
[363241396,1748641840199,-2163.22,0.00016438,2]
[363241398,1748641840208,-433.80160203,0.00016438,2]
[363241400,1748641840217,-430.0,0.00016438,2]
[363241402,1748641840226,-806.04,0.00016438,2]
[363241404,1748641840236,-430.0,0.00016438,2]
[363241406,1748641840246,-493.85976831,0.00016438,2]
[363241408,1748641840255,-490.0,0.00016438,2]
[363241410,1748641840265,-500.0,0.00016438,2]
[363241412,1748641840274,-246.10380235,0.00016492,2]
[363241414,1748641840283,-151.0,0.00016492,2]
[363241416,1748641840292,-151.0,0.00016519,2]
[363241418,1748641840302,-189.87273758,0.00016547,2]
[363241420,1748641840311,-420.0,0.00016572,2]
[363241423,1748641840320,-2066.87524619,0.00016612,2]
[363241425,1748641840331,-795.04,0.00016702,3]
[363241427,1748641840340,-1000.0,0.00016711,2]
[363241429,1748641840350,-1000.0,0.00016711,2]
[363241431,1748641840359,-430.0,0.00016712,2]
[363241433,1748641840369,-430.0,0.00016712,2]
[363241435,1748641840379,-430.0,0.00016712,2]
[363241437,1748641840388,-430.0,0.00016712,2]
[363241439,1748641840397,-430.0,0.00016712,2]
[363241441,1748641840406,-430.0,0.00016712,2]
[363241443,1748641840415,-430.0,0.00016712,2]
[363241445,1748641840423,-418.13,0.00016712,2]
[363241447,1748641840433,-1254.13,0.00016712,2]
[363241449,1748641840442,-481.24,0.00016712,2]
[363241451,1748641840451,-430.0,0.00016712,2]
[363241453,1748641840460,-1234.6,0.00016712,2]
[363241455,1748641840470,-168.04963574,0.00016712,2]
[363241457,1748641840479,-430.0,0.00016712,2]
[363241459,1748641840488,-1806.84,0.00016712,2]
[363241461,1748641840498,-430.0,0.00016712,2]
[363241463,1748641840507,-2218.07,0.00016712,2]
[363241465,1748641840516,-430.0,0.00016712,2]
[363241467,1748641840527,-2428.29,0.00016712,2]
[363241469,1748641840536,-635.15,0.00016712,2]
[363241471,1748641840545,-507.57,0.00016712,2]
[363241473,1748641840554,-3119.5,0.00016712,2]
[363241475,1748641840564,-430.0,0.00016712,2]
[363241477,1748641840574,-430.0,0.00016712,2]
[363241478,1748641840583,-517.55,0.00016712,2]
[363241480,1748641840593,-430.0,0.00016712,2]
[363241483,1748641840603,-609.36,0.00016712,2]
[363241485,1748641840612,-430.0,0.00016712,2]
[363241487,1748641840623,-430.0,0.00016712,2]
[363241489,1748641840632,-430.0,0.00016712,2]
[363241490,1748641840642,-660.71,0.00016712,2]
[363241492,1748641840651,-430.0,0.00016712,2]
[363241494,1748641840661,-430.0,0.00016712,2]
[363241496,1748641840670,-663.44,0.00016712,2]
[363241499,1748641840679,-430.0,0.00016712,2]
[363241501,1748641840689,-2525.76,0.00016712,2]
[363241503,1748641840699,-475.44,0.00016712,2]
[363241504,1748641840708,-430.0,0.00016712,2]
[363241507,1748641840718,-430.0,0.00016712,2]
[363241509,1748641840727,-2730.93,0.00016712,2]
[363241511,1748641840737,-695.56,0.00016712,2]
[363241513,1748641840750,-1254.69,0.00016712,2]
[363241515,1748641840758,-430.0,0.00016712,2]
[363241517,1748641840768,-430.0,0.00016712,2]
[363241519,1748641840777,-643.19,0.00016712,2]
[363241520,1748641840786,-895.87,0.00016712,2]
[363241521,1748641840796,-430.0,0.00016712,2]
[363241522,1748641840806,-691.5,0.00016712,2]
[363241523,1748641840815,-430.0,0.00016712,2]
[363241524,1748641840827,-430.0,0.00016712,2]
[363241525,1748641840837,-430.0,0.00016712,2]
[363241526,1748641840846,-430.0,0.00016712,2]
[363241527,1748641840855,-201.67367518,0.00016712,2]
[363241528,1748641840865,-1550.89,0.00016712,2]
[363241529,1748641840875,-430.0,0.00016712,2]
[363241530,1748641840884,-430.0,0.00016712,2]
[363241531,1748641840894,-430.0,0.00016712,2]
[363241532,1748641840903,-430.0,0.00016712,2]
[363241533,1748641840913,-430.0,0.00016712,2]
[363241534,1748641840924,-430.0,0.00016712,2]
[363241535,1748641840933,-430.0,0.00016712,2]
[363241536,1748641840943,-430.0,0.00016712,2]
[363241537,1748641840953,-430.0,0.00016712,2]
[363241538,1748641840962,-1512.83,0.00016712,2]
[363241539,1748641840972,-430.0,0.00016712,2]
[363241541,1748641840981,-1338.85,0.00016712,2]
[363241542,1748641840989,-430.0,0.00016712,2]
[363241544,1748641840999,-430.0,0.00016712,2]
[363241545,1748641841008,-430.0,0.00016712,2]
[363241547,1748641841018,-430.0,0.00016712,2]
[363241548,1748641841027,-884.37,0.00016712,2]
[363241549,1748641841036,-2163.22,0.00016712,2]
[363241551,1748641841045,-430.0,0.00016712,2]
[363241553,1748641841055,-806.04,0.00016712,2]
[363241554,1748641841063,-591.43959293,0.00016715,2]
[363241555,1748641841073,-217.67822145,0.00016717,2]
[363241556,1748641841082,-2066.87524617,0.00016934,2]
[363241557,1748641841091,-24301.8590353,0.00016972,3]
[363241558,1748641841100,-234149.65744768,0.00016972,2]
[363241559,1748641841110,-12663.11115519,0.00016972,3]
[363241560,1748641841120,-500.0,0.00016973,2]
[363241561,1748641841129,-500.0,0.00016973,2]
[363241562,1748641841138,-500.0,0.00016973,2]
[363241563,1748641841148,-500.0,0.00016973,2]
[363241564,1748641841157,-300.38778876,0.00016973,2]
[363241565,1748641841166,-210.2462923,0.00016973,2]
[363241566,1748641841175,-500.0,0.00016973,2]
[363241567,1748641841185,-500.0,0.00016973,2]
[363241568,1748641841194,-500.0,0.00016973,2]
[363241569,1748641841203,-500.0,0.00016973,2]
[363241570,1748641841212,-500.0,0.00016973,2]
[363241571,1748641841221,-500.0,0.00016973,2]
[363241572,1748641841231,-986.75,0.00016985,2]
[363241573,1748641841240,-430.0,0.00016985,2]
[363241574,1748641841249,-1000.0,0.00016985,2]
[363241575,1748641841258,-1000.0,0.00016985,2]
[363241576,1748641841267,-1000.0,0.00016985,2]
[363241577,1748641841276,-3194.47,0.00016985,2]
[363241578,1748641841286,-1465.33,0.00016985,2]
[363241579,1748641841295,-430.0,0.00016986,2]
[363241580,1748641841304,-545.68,0.00016986,2]
[363241581,1748641841314,-430.0,0.00016986,2]
[363241582,1748641841323,-430.0,0.00016986,2]
[363241583,1748641841332,-329.8,0.00016986,2]
[363241584,1748641841341,-1254.13,0.00016986,2]
[363241585,1748641841351,-481.24,0.00016986,2]
[363241586,1748641841361,-430.0,0.00016986,2]
[363241587,1748641841371,-1234.6,0.00016986,2]
[363241588,1748641841380,-215.24,0.00016986,2]
[363241589,1748641841389,-1806.84,0.00016986,2]
[363241590,1748641841399,-430.0,0.00016986,2]
[363241591,1748641841408,-2218.07,0.00016986,2]
[363241592,1748641841417,-505.83,0.00016986,2]
[363241593,1748641841426,-2428.29,0.00016986,2]
[363241594,1748641841436,-635.15,0.00016986,2]
[363241595,1748641841445,-507.57,0.00016986,2]
[363241596,1748641841456,-3119.5,0.00016986,2]
[363241597,1748641841466,-430.0,0.00016986,2]
[363241598,1748641841477,-517.55,0.00016986,2]
[363241599,1748641841487,-430.0,0.00016986,2]
[363241600,1748641841497,-609.36,0.00016986,2]
[363241601,1748641841507,-430.0,0.00016986,2]
[363241602,1748641841516,-430.0,0.00016986,2]
[363241603,1748641841526,-430.0,0.00016986,2]
[363241604,1748641841536,-660.71,0.00016986,2]
[363241605,1748641841547,-430.0,0.00016986,2]
[363241606,1748641841556,-663.44,0.00016986,2]
[363241607,1748641841565,-430.0,0.00016986,2]
[363241608,1748641841575,-2525.76,0.00016986,2]
[363241609,1748641841584,-475.44,0.00016986,2]
[363241610,1748641841594,-2730.93,0.00016986,2]
[363241611,1748641841603,-695.56,0.00016986,2]
[363241612,1748641841612,-1254.69,0.00016986,2]
[363241613,1748641841622,-430.0,0.00016986,2]
[363241615,1748641841631,-643.19,0.00016986,2]
[363241616,1748641841641,-895.87,0.00016986,2]
[363241617,1748641841650,-430.0,0.00016986,2]
[363241618,1748641841660,-691.5,0.00016986,2]
[363241619,1748641841669,-430.0,0.00016986,2]
[363241620,1748641841678,-430.0,0.00016986,2]
[363241621,1748641841687,-430.0,0.00016986,2]
[363241622,1748641841697,-1550.89,0.00016986,2]
[363241623,1748641841706,-430.0,0.00016986,2]
[363241624,1748641841715,-430.0,0.00016986,2]
[363241625,1748641841725,-430.0,0.00016986,2]
[363241626,1748641841734,-430.0,0.00016986,2]
[363241627,1748641841745,-430.0,0.00016986,2]
[363241628,1748641841756,-430.0,0.00016986,2]
[363241629,1748641841765,-430.0,0.00016986,2]
[363241630,1748641841775,-430.0,0.00016986,2]
[363241632,1748641841784,-430.0,0.00016986,2]
[363241633,1748641841794,-1512.83,0.00016986,2]
[363241634,1748641841804,-1338.85,0.00016986,2]
[363241635,1748641841813,-430.0,0.00016986,2]
[363241636,1748641841824,-430.0,0.00016986,2]
[363241637,1748641841834,-538.61,0.00016986,2]
[363241638,1748641841844,-884.37,0.00016986,2]
[363241639,1748641841853,-2163.22,0.00016986,2]
[363241640,1748641841862,-430.0,0.00016986,2]
[363241641,1748641841871,-806.04,0.00016986,2]
[363241642,1748641841881,-842.5625,0.00016994,3]
[363241643,1748641841890,-212.7380601,0.00016994,3]
[363241644,1748641841900,-314.81381568,0.00016994,3]
[363241645,1748641841909,-227.00746042,0.00016994,2]
[363241646,1748641841918,-500.0,0.00017008,2]
[363241647,1748641841928,-1135.99919807,0.00017171,2]
[363241648,1748641841937,-500.0,0.00017173,2]
[363241649,1748641841946,-506.04841963,0.00017173,2]
[363241650,1748641841955,-1144.3770804,0.00017178,2]
[363241651,1748641841965,-3545.93276435,0.000172,2]
[363241652,1748641841974,-3545.93276423,0.000172,2]
[363241653,1748641841983,-3545.93276423,0.000172,2]
[363241654,1748641841993,-3545.93276423,0.000172,2]
[363241655,1748641842003,-3545.93276423,0.000172,2]
[363241656,1748641842012,-500.0,0.00017213,2]
[363241657,1748641842021,-2066.87524617,0.00017256,2]
[363241658,1748641842031,-986.75,0.00017259,2]
[363241659,1748641842041,-430.0,0.00017259,2]
[363241660,1748641842050,-3194.47,0.00017259,2]
[363241661,1748641842059,-1465.33,0.00017259,2]
[363241662,1748641842068,-430.0,0.0001726,2]
[363241663,1748641842077,-430.0,0.0001726,2]
[363241664,1748641842087,-430.0,0.0001726,2]
[363241665,1748641842098,-1254.13,0.0001726,2]
[363241666,1748641842107,-481.24,0.0001726,2]
[363241667,1748641842116,-491.7,0.0001726,2]
[363241668,1748641842126,-1234.6,0.0001726,2]
[363241669,1748641842135,-1806.84,0.0001726,2]
[363241670,1748641842144,-430.0,0.0001726,2]
[363241671,1748641842155,-2218.07,0.0001726,2]
[363241672,1748641842164,-2428.29,0.0001726,2]
[363241673,1748641842173,-635.15,0.0001726,2]
[363241674,1748641842182,-507.57,0.0001726,2]
[363241675,1748641842192,-3119.5,0.0001726,2]
[363241676,1748641842200,-430.0,0.0001726,2]
[363241677,1748641842210,-517.55,0.0001726,2]
[363241678,1748641842220,-430.0,0.0001726,2]
[363241679,1748641842229,-609.36,0.0001726,2]
[363241680,1748641842238,-430.0,0.0001726,2]
[363241681,1748641842247,-430.0,0.0001726,2]
[363241682,1748641842257,-430.0,0.0001726,2]
[363241683,1748641842267,-660.71,0.0001726,2]
[363241684,1748641842276,-430.0,0.0001726,2]
[363241685,1748641842285,-663.44,0.0001726,2]
[363241686,1748641842295,-430.0,0.0001726,2]
[363241687,1748641842304,-2525.76,0.0001726,2]
[363241688,1748641842430,-475.44,0.0001726,2]
[363241689,1748641842441,-2730.93,0.0001726,2]
[363241690,1748641842451,-695.56,0.0001726,2]
[363241691,1748641842460,-1254.69,0.0001726,2]
[363241692,1748641842470,-643.19,0.0001726,2]
[363241693,1748641842480,-895.87,0.0001726,2]
[363241694,1748641842489,-691.5,0.0001726,2]
[363241696,1748641842499,-430.0,0.0001726,2]
[363241697,1748641842508,-576.8,0.0001726,2]
[363241698,1748641842518,-430.0,0.0001726,2]
[363241699,1748641842527,-1550.89,0.0001726,2]
[363241700,1748641842536,-276.48,0.0001726,2]
[363241701,1748641842546,-430.0,0.0001726,2]
[363241702,1748641842555,-430.0,0.0001726,2]
[363241703,1748641842565,-430.0,0.0001726,2]
[363241704,1748641842575,-226.42216501,0.0001726,2]
[363241705,1748641842584,-430.0,0.0001726,2]